lending/lending_fUSD_20250719
["ID","MTS","AMOUNT","RATE_DAILY","PERIOD"]
[373162146,1752888657312,-468.430801,0.00019178,2]
[373162149,1752888657322,-468.430801,0.00019178,2]
[373162151,1752888657331,-468.430801,0.00019178,2]
[373162153,1752888657340,-468.430801,0.00019178,2]
[373162155,1752888657350,-468.430801,0.00019178,2]
[373162156,1752888657360,-725.36,0.00019178,2]
[373162159,1752888657369,-468.430801,0.00019178,2]
[373162161,1752888657379,-151.0,0.00019178,2]
[373162163,1752888657388,-468.430801,0.00019178,2]
[373162165,1752888657397,-151.0,0.00019178,2]
[373162167,1752888657407,-468.430801,0.00019178,2]
[373162168,1752888657416,-151.0,0.00019178,2]
[373162170,1752888657425,-1183.06,0.00019178,2]
[373162172,1752888657434,-468.430801,0.00019178,2]
[373162174,1752888657443,-468.430801,0.00019178,2]
[373162176,1752888657453,-480.0,0.00019178,2]
[373162178,1752888657462,-468.430801,0.00019178,2]
[373162180,1752888657471,-480.0,0.00019178,2]
[373162182,1752888657482,-151.0,0.00019178,2]
[373162184,1752888657491,-176.261483,0.00019178,2]
[373162186,1752888657501,-468.430801,0.00019178,2]
[373162188,1752888657511,-480.0,0.00019178,2]
[373162190,1752888657521,-151.0,0.00019178,2]
[373162192,1752888657530,-176.261483,0.00019178,2]
[373162194,1752888657540,-468.430797,0.00019178,2]
[373162196,1752888657549,-2117.64,0.00019178,2]
[373162198,1752888657559,-151.0,0.00019178,2]
[373162200,1752888657568,-176.261483,0.00019178,2]
[373162202,1752888657578,-151.0,0.00019178,2]
[373162204,1752888657587,-176.261483,0.00019178,2]
[373162206,1752888657597,-480.0,0.00019178,2]
[373162208,1752888657607,-480.0,0.00019178,2]
[373162210,1752888657616,-151.0,0.00019178,2]
[373162212,1752888657625,-151.0,0.00019178,2]
[373162214,1752888657635,-176.261483,0.00019178,2]
[373162216,1752888657645,-151.0,0.00019178,2]
[373162218,1752888657654,-176.261483,0.00019178,2]
[373162220,1752888657663,-480.0,0.00019178,2]
[373162222,1752888657673,-151.0,0.00019178,2]
[373162224,1752888657682,-176.261483,0.00019178,2]
[373162226,1752888657692,-151.0,0.00019178,2]
[373162228,1752888657702,-151.0,0.00019178,2]
[373162230,1752888657711,-176.261483,0.00019178,2]
[373162232,1752888657720,-151.0,0.00019178,2]
[373162234,1752888657729,-480.0,0.00019178,2]
[373162236,1752888657739,-176.261483,0.00019178,2]
[373162238,1752888657748,-2173.08,0.00019178,2]
[373162240,1752888657759,-176.261483,0.00019178,2]
[373162242,1752888657768,-176.261483,0.00019178,2]
[373162244,1752888657778,-151.0,0.00019178,2]
[373162246,1752888657788,-176.261483,0.00019178,2]
[373162248,1752888657798,-480.0,0.00019178,2]
[373162250,1752888657808,-176.261483,0.00019178,2]
[373162252,1752888657817,-480.0,0.00019178,2]
[373162254,1752888657828,-176.261483,0.00019178,2]
[373162256,1752888657838,-480.0,0.00019178,2]
[373162258,1752888657847,-176.261483,0.00019178,2]
[373162260,1752888657857,-2731.47,0.00019178,2]
[373162262,1752888657867,-176.261479,0.00019178,2]
[373162264,1752888657876,-1978.38,0.00019178,2]
[373162266,1752888657885,-531.72,0.00019178,2]
[373162268,1752888657894,-480.0,0.00019178,2]
[373162270,1752888657904,-555.35,0.00019178,2]
[373162272,1752888657913,-480.0,0.00019178,2]
[373162274,1752888657923,-1343.88,0.00019178,2]
[373162276,1752888657932,-480.0,0.00019178,2]
[373162278,1752888657942,-480.0,0.00019178,2]
[373162280,1752888657951,-480.0,0.00019178,2]
[373162282,1752888657961,-151.78114138,0.00019178,2]
[373162284,1752888657970,-2481.37,0.00019178,2]
[373162286,1752888657980,-480.0,0.00019178,2]
[373162288,1752888657990,-480.0,0.00019178,2]
[373162290,1752888658001,-480.0,0.00019178,2]
[373162292,1752888658010,-728.91,0.00019178,2]
[373162294,1752888658019,-480.0,0.00019178,2]
[373162296,1752888658029,-480.0,0.00019178,2]
[373162298,1752888658038,-480.0,0.00019178,2]
[373162300,1752888658047,-480.0,0.00019178,2]
[373162302,1752888658057,-480.0,0.00019178,2]
[373162304,1752888658066,-560.64,0.00019178,2]
[373162306,1752888658076,-480.0,0.00019178,2]
[373162308,1752888658086,-509.08364898,0.00019178,2]
[373162310,1752888658095,-508.37,0.00019178,2]
[373162312,1752888658104,-480.0,0.00019178,2]
[373162314,1752888658114,-585.12,0.00019178,2]
[373162316,1752888658123,-1149.78,0.00019178,2]
[373162318,1752888658134,-3388.13,0.00019178,2]
[373162320,1752888658146,-500.0,0.00019178,2]
[373162322,1752888658156,-2906.59,0.00019178,2]
[373162324,1752888658165,-500.0,0.00019178,2]
[373162326,1752888658174,-891.26,0.00019178,2]
[373162328,1752888658185,-500.0,0.00019178,2]
[373162330,1752888658194,-420.0,0.00019178,2]
[373162332,1752888658204,-500.0,0.00019178,2]
[373162334,1752888658213,-500.0,0.00019178,2]
[373162336,1752888658225,-480.0,0.00019178,2]
[373162338,1752888658235,-500.0,0.00019178,2]
[373162340,1752888658245,-420.52157027,0.00019178,2]
[373162342,1752888658255,-1185.44,0.00019178,2]
[373162344,1752888658264,-380.0,0.00019178,2]
[373162346,1752888658273,-480.0,0.00019178,2]
[373162348,1752888658283,-2035.15,0.00019178,2]
[373162350,1752888658292,-748.68,0.00019178,2]
[373162352,1752888658302,-480.0,0.00019178,2]
[373162354,1752888658312,-1441.68,0.00019178,2]
[373162356,1752888658322,-480.0,0.00019178,2]
[373162358,1752888658332,-462.6122143,0.00019178,2]
[373162360,1752888658341,-998.17,0.00019178,2]
[373162362,1752888658351,-1381.67,0.00019178,2]
[373162364,1752888658360,-480.0,0.00019178,2]
[373162366,1752888658370,-480.0,0.00019178,2]
[373162368,1752888658381,-994.6,0.00019178,2]
[373162370,1752888658391,-480.0,0.00019178,2]
[373162372,1752888658401,-480.0,0.00019178,2]
[373162374,1752888658410,-523.26,0.00019178,2]
[373162376,1752888658419,-505.41395535,0.00019178,2]
[373162378,1752888658428,-554.43244137,0.00019178,2]
[373162398,1752888658727,-151.0,0.00019178,2]
[373162402,1752888658755,-151.0,0.00019178,2]
[373162404,1752888658765,-615.01,0.00019178,2]
[373162406,1752888658775,-151.0,0.00019178,2]
[373162408,1752888658784,-202.393792,0.00019178,2]
[373162410,1752888658794,-480.0,0.00019178,2]
[373162412,1752888658803,-480.0,0.00019178,2]
[373162413,1752888658813,-480.0,0.00019178,2]
[373162415,1752888658823,-2381.44,0.00019178,2]
[373162417,1752888658832,-2219.69,0.00019178,2]
[373162419,1752888658842,-480.0,0.00019178,2]
[373162421,1752888658851,-6547.29,0.00019178,2]
[373162424,1752888658861,-480.0,0.00019178,2]
[373162426,1752888658871,-5876.53,0.00019178,2]
[373162428,1752888658882,-480.0,0.00019178,2]
[373162430,1752888658891,-781.22,0.00019178,2]
[373162432,1752888658901,-574.05,0.00019178,2]
[373162434,1752888658911,-380.0,0.00019178,2]
[373162436,1752888658921,-460.0,0.00019178,2]
[373162437,1752888658930,-1256.0,0.00019178,2]
[373162440,1752888658940,-460.0,0.00019178,2]
[373162441,1752888658949,-480.0,0.00019178,2]
[373162443,1752888658959,-480.0,0.00019178,2]
[373162445,1752888658970,-480.0,0.00019178,2]
[373162447,1752888658979,-34456.48,0.00019178,2]
[373162449,1752888658988,-1885.62,0.00019178,2]
[373162451,1752888658997,-480.0,0.00019178,2]
[373162453,1752888659007,-400.1003991,0.00019178,2]
[373162455,1752888659016,-480.0,0.00019178,2]
[373162457,1752888659025,-1843.88,0.00019178,2]
[373162459,1752888659035,-1063.27,0.00019178,2]
[373162461,1752888659044,-756.65,0.00019178,2]
[373162463,1752888659053,-779.84,0.00019178,2]
[373162465,1752888659063,-902.36,0.00019178,2]
[373162467,1752888659073,-480.0,0.00019178,2]
[373162469,1752888659082,-480.0,0.00019178,2]
[373162471,1752888659091,-480.0,0.00019178,2]
[373162473,1752888659101,-879.53,0.00019178,2]
[373162475,1752888659111,-531.39,0.00019178,2]
[373162477,1752888659120,-3926.79,0.00019178,2]
[373162479,1752888659130,-480.0,0.00019178,2]
[373162481,1752888659140,-1334.35,0.00019178,2]
[373162483,1752888659151,-1098.83,0.00019178,2]
[373162485,1752888659160,-495.82290102,0.00019178,2]
[373162487,1752888659170,-1112.34,0.00019178,2]
[373162489,1752888659179,-480.0,0.00019178,2]
[373162491,1752888659189,-4173.98,0.00019178,2]
[373162493,1752888659199,-480.0,0.00019178,2]
[373162495,1752888659208,-1019.75,0.00019178,2]
[373162497,1752888659218,-878.37,0.00019178,2]
[373162499,1752888659227,-531.52,0.00019178,2]
[373162501,1752888659237,-536.67,0.00019178,2]
[373162503,1752888659246,-480.0,0.00019178,2]
[373162505,1752888659255,-460.0,0.00019178,2]
[373162507,1752888659264,-480.0,0.00019178,2]
[373162508,1752888659274,-4040.09,0.00019178,2]
[373162510,1752888659284,-359.5667735,0.00019178,2]
[373162512,1752888659293,-480.0,0.00019178,2]
[373162515,1752888659303,-480.0,0.00019178,2]
[373162517,1752888659312,-1912.01,0.00019178,2]
[373162519,1752888659321,-3332.41,0.00019178,2]
[373162520,1752888659331,-151.0,0.00019178,2]
[373162523,1752888659340,-1204.49,0.00019178,2]
[373162524,1752888659350,-1009.72,0.00019178,2]
[373162526,1752888659359,-480.0,0.00019178,2]
[373162529,1752888659369,-480.0,0.00019178,2]
[373162531,1752888659378,-1164.19,0.00019178,2]
[373162532,1752888659387,-480.0,0.00019178,2]
[373162534,1752888659397,-480.0,0.00019178,2]
[373162536,1752888659406,-480.0,0.00019178,2]
[373162538,1752888659416,-330.11151663,0.00019178,2]
[373162540,1752888659426,-480.0,0.00019178,2]
[373162542,1752888659435,-480.0,0.00019178,2]
[373162544,1752888659445,-460.0,0.00019178,2]
[373162546,1752888659455,-2333.35,0.00019178,2]
[373162548,1752888659464,-480.0,0.00019178,2]
[373162550,1752888659473,-480.0,0.00019178,2]
[373162552,1752888659483,-480.0,0.00019178,2]
[373162554,1752888659492,-480.0,0.00019178,2]
[373162556,1752888659502,-480.0,0.00019178,2]
[373162558,1752888659511,-480.0,0.00019178,2]
[373162560,1752888659521,-480.0,0.00019178,2]
[373162562,1752888659530,-480.0,0.00019178,2]
[373162564,1752888659540,-480.0,0.00019178,2]
[373162566,1752888659549,-642.55,0.00019178,2]
[373162568,1752888659559,-480.0,0.00019178,2]
[373162570,1752888659568,-480.0,0.00019178,2]
[373162572,1752888659580,-480.0,0.00019178,2]
[373162574,1752888659590,-645.39,0.00019178,2]
[373162576,1752888659599,-1344.15,0.00019178,2]
[373162578,1752888659609,-1024.03,0.00019178,2]
[373162580,1752888659618,-480.0,0.00019178,2]
[373162582,1752888659628,-328.81399947,0.00019178,2]
[373162584,1752888659638,-480.0,0.00019178,2]
[373162586,1752888659647,-480.0,0.00019178,2]
[373162588,1752888659657,-1675.21,0.00019178,2]
[373162590,1752888659666,-480.0,0.00019178,2]
[373162592,1752888659675,-656.42,0.00019178,2]
[373162594,1752888659685,-490.0,0.00019178,2]
[373162596,1752888659694,-480.0,0.00019178,2]
[373162598,1752888659704,-2380.94,0.00019178,2]
[373162600,1752888659713,-565.56,0.00019178,2]
[373162602,1752888659723,-1145.56,0.00019178,2]
[373162604,1752888659732,-151.0,0.00019178,2]
[373162606,1752888659741,-151.0,0.00019178,2]
[373162608,1752888659751,-480.0,0.00019178,2]
[373162610,1752888659760,-151.0,0.00019178,2]
[373162612,1752888659769,-151.0,0.00019178,2]
[373162614,1752888659778,-2293.05,0.00019178,2]
[373162616,1752888659788,-151.0,0.00019178,2]
[373162618,1752888659797,-194.51270957,0.00019178,2]
[373162620,1752888659807,-151.0,0.00019178,2]
[373162622,1752888659816,-186.137918,0.00019178,2]
[373162624,1752888659826,-480.0,0.00019178,2]
[373162626,1752888659835,-2595.14,0.00019178,2]
[373162628,1752888659845,-488.62792426,0.00019178,2]
[373162629,1752888659855,-487.12614674,0.00019178,2]
[373162632,1752888659864,-6879.99,0.00019178,2]
[373162634,1752888659874,-480.0,0.00019178,2]
[373162636,1752888659884,-480.0,0.00019178,2]
[373162638,1752888659893,-480.0,0.00019178,2]
[373162640,1752888659903,-300.0,0.00019178,2]
[373162642,1752888659912,-480.0,0.00019178,2]
[373162644,1752888659922,-480.0,0.00019178,2]
[373162646,1752888659932,-539.67893041,0.00019178,2]
[373162648,1752888659941,-480.0,0.00019178,2]
[373162650,1752888659950,-904.05,0.00019178,2]
[373162652,1752888659960,-480.0,0.00019178,2]
[373162653,1752888659970,-1167.24,0.00019178,2]
[373162655,1752888659979,-484.22224108,0.00019178,2]
[373162657,1752888659989,-480.0,0.00019178,2]
[373162659,1752888659998,-2324.72,0.00019178,2]
[373162661,1752888660008,-657.5,0.00019178,2]
[373162663,1752888660017,-480.0,0.00019178,2]
[373162665,1752888660026,-1846.36,0.00019178,2]
[373162667,1752888660036,-1860.83,0.00019178,2]
[373162669,1752888660045,-480.0,0.00019178,2]
[373162671,1752888660055,-423.76905635,0.00019178,2]
[373162673,1752888660064,-2058.15,0.00019178,2]
[373162675,1752888660073,-480.0,0.00019178,2]
[373162677,1752888660083,-505.42527261,0.00019178,2]
[373162679,1752888660093,-480.0,0.00019178,2]
[373162681,1752888660102,-480.0,0.00019178,2]
[373162683,1752888660112,-480.0,0.00019178,2]
[373162685,1752888660121,-480.0,0.00019178,2]
[373162687,1752888660131,-480.0,0.00019178,2]
[373162689,1752888660145,-480.0,0.00019178,2]
[373162691,1752888660158,-784.99,0.00019178,2]
[373162693,1752888660167,-480.0,0.00019178,2]
[373162695,1752888660177,-2668.26,0.00019178,2]
[373162696,1752888660187,-484.42718938,0.00019178,2]
[373162698,1752888660197,-1787.76,0.00019178,2]
[373162700,1752888660207,-694.6,0.00019178,2]
[373162702,1752888660217,-480.0,0.00019178,2]
[373162704,1752888660227,-1118.66,0.00019178,2]
[373162706,1752888660236,-480.0,0.00019178,2]
[373162708,1752888660246,-3471.23,0.00019178,2]
[373162710,1752888660256,-480.0,0.00019178,2]
[373162712,1752888660265,-480.0,0.00019178,2]
[373162714,1752888660275,-480.94782451,0.00019178,2]
[373162716,1752888660285,-480.0,0.00019178,2]
[373162718,1752888660295,-1379.76,0.00019178,2]
[373162720,1752888660305,-480.0,0.00019178,2]
[373162722,1752888660314,-745.51,0.00019178,2]
[373162724,1752888660323,-2501.63,0.00019178,2]
[373162726,1752888660334,-6088.28,0.00019178,2]
[373162728,1752888660343,-480.0,0.00019178,2]
[373162730,1752888660353,-500.0,0.00019178,2]
[373162732,1752888660362,-480.0,0.00019178,2]
[373162734,1752888660371,-500.0,0.00019178,2]
[373162736,1752888660382,-500.0,0.00019178,2]
[373162738,1752888660391,-500.0,0.00019178,2]
[373162740,1752888660401,-500.0,0.00019178,2]
[373162742,1752888660410,-491.52374253,0.00019178,2]
[373162744,1752888660420,-482.59370261,0.00019178,2]
[373162746,1752888660429,-3402.23,0.00019178,2]
[373162748,1752888660439,-486.9379282,0.00019178,2]
[373162750,1752888660448,-497.1300915,0.00019178,2]
[373162752,1752888660458,-1615.66,0.00019178,2]
[373162754,1752888660467,-480.0,0.00019178,2]
[373162756,1752888660476,-151.0,0.00019178,2]
[373162758,1752888660485,-181.30480171,0.00019178,2]
[373162760,1752888660495,-384117.09501818,0.00019178,2]
[373162762,1752888660504,-878.7309719,0.00019178,2]
[373162764,1752888660513,-151.0,0.00019178,2]
[373162766,1752888660523,-151.0,0.00019178,2]
[373162767,1752888660532,-151.0,0.00019178,2]
[373162769,1752888660541,-151.0,0.00019178,2]
[373162772,1752888660552,-151.0,0.00019178,2]
[373162773,1752888660561,-151.0,0.00019178,2]
[373162775,1752888660571,-151.0,0.00019178,2]
[373162777,1752888660580,-151.0,0.00019178,2]
[373162779,1752888660589,-150.0,0.00019178,2]
[373162781,1752888660599,-168.54,0.00019178,2]
[373162783,1752888660608,-16217.06862533,0.00019178,2]
[373162785,1752888660617,-233.45389338,0.00019188,2]
[373162787,1752888660627,-4597.25088046,0.00019194,2]
[373162789,1752888660637,-500.0,0.00019199,2]
[373162791,1752888660647,-497.04,0.00019199,2]
[373162793,1752888660656,-33343.86092049,0.000192,2]
[373162795,1752888660665,-50034.38622614,0.000192,2]
[373162797,1752888660674,-151.0,0.000192,2]
[373162799,1752888660684,-233.45389338,0.000192,2]
[373162801,1752888660694,-2118.23,0.0001921,2]
[373162803,1752888660703,-233.45389338,0.00019212,2]
[373162805,1752888660713,-4233.18587294,0.00019223,2]
[373162807,1752888660722,-233.45389338,0.00019224,2]
[373162809,1752888660732,-233.45389338,0.00019236,2]
[373162811,1752888660741,-233.45389338,0.00019249,2]
[373162813,1752888660750,-2461.0,0.00019254,2]
[373162815,1752888660759,-165.0,0.0001926,2]
[373162817,1752888660769,-233.45389338,0.00019261,2]
[373162819,1752888660778,-4597.25088046,0.00019266,2]
[373162820,1752888660790,-804.0,0.00019271,2]
[373162823,1752888660805,-500.0,0.00019273,2]
[373162824,1752888660814,-500.0,0.00019273,2]
[373162826,1752888660824,-500.0,0.00019273,2]
[373162828,1752888660833,-500.22369999,0.00019273,2]
[373162830,1752888660849,-233.45389338,0.00019273,2]
[373162832,1752888660864,-168.0,0.00019277,2]
[373162834,1752888660873,-233.45389338,0.00019285,2]
[373162836,1752888660883,-500.0,0.00019286,2]
[373162838,1752888660892,-500.0,0.00019286,2]
[373162840,1752888660901,-500.0,0.00019286,2]
[373162842,1752888660911,-500.0,0.00019286,2]
[373162844,1752888660920,-500.0,0.00019286,2]
[373162846,1752888660929,-480.0,0.00019287,2]
[373162848,1752888660938,-480.0,0.00019287,2]
[373162850,1752888660948,-440.0,0.00019287,2]
[373162852,1752888660957,-480.0,0.00019287,2]
[373162854,1752888660967,-480.0,0.00019287,2]
[373162856,1752888660976,-480.0,0.00019287,2]
[373162858,1752888660986,-480.0,0.00019287,2]
[373162860,1752888660995,-440.0,0.00019287,2]
[373162861,1752888661005,-349.94020251,0.00019287,2]
[373162862,1752888661014,-480.0,0.00019287,2]
[373162863,1752888661023,-420.0,0.00019287,2]
[373162864,1752888661032,-322.66620681,0.00019287,2]
[373162866,1752888661041,-480.0,0.00019287,2]
[373162868,1752888661051,-480.0,0.00019287,2]
[373162877,1752888661129,-480.0,0.00019287,2]
[373162879,1752888661141,-480.0,0.00019287,2]
[373162880,1752888661151,-335.42228273,0.00019287,2]
[373162882,1752888661160,-480.0,0.00019287,2]
[373162884,1752888661169,-480.0,0.00019287,2]
[373162886,1752888661178,-480.0,0.00019287,2]
[373162888,1752888661189,-480.0,0.00019287,2]
[373162890,1752888661198,-480.0,0.00019287,2]
[373162892,1752888661208,-480.0,0.00019287,2]
[373162894,1752888661218,-480.0,0.00019287,2]
[373162896,1752888661227,-480.0,0.00019287,2]
[373162898,1752888661238,-480.0,0.00019287,2]
[373162900,1752888661247,-480.0,0.00019287,2]
[373162902,1752888661255,-480.0,0.00019287,2]
[373162904,1752888661265,-480.0,0.00019287,2]
[373162906,1752888661274,-480.0,0.00019287,2]
[373162908,1752888661285,-480.0,0.00019287,2]
[373162910,1752888661294,-480.0,0.00019287,2]
[373162912,1752888661303,-526.77,0.00019287,2]
[373162914,1752888661313,-480.0,0.00019287,2]
[373162916,1752888661323,-504.93475088,0.00019287,2]
[373162918,1752888661332,-480.0,0.00019287,2]
[373162920,1752888661341,-480.0,0.00019287,2]
[373162922,1752888661350,-315.59787082,0.00019287,2]
[373162924,1752888661359,-480.0,0.00019287,2]
[373162926,1752888661369,-480.0,0.00019287,2]
[373162927,1752888661378,-480.0,0.00019287,2]
[373162929,1752888661387,-480.0,0.00019287,2]
[373162931,1752888661396,-522.6,0.00019287,2]
[373162933,1752888661406,-480.0,0.00019287,2]
[373162935,1752888661415,-480.0,0.00019287,2]
[373162937,1752888661424,-408.7280857,0.00019287,2]
[373162939,1752888661433,-480.0,0.00019287,2]
[373162941,1752888661443,-467.44281784,0.00019287,2]
[373162943,1752888661452,-427.89967234,0.00019287,2]
[373162945,1752888661462,-480.0,0.00019287,2]
[373162947,1752888661470,-480.0,0.00019287,2]
[373162949,1752888661479,-400.0,0.00019287,2]
[373162951,1752888661489,-480.0,0.00019287,2]
[373162953,1752888661498,-245.98882407,0.00019287,2]
[373162955,1752888661507,-480.0,0.00019287,2]
[373162956,1752888661516,-480.0,0.00019287,2]
[373162958,1752888661525,-480.0,0.00019287,2]
[373162960,1752888661534,-480.0,0.00019287,2]
[373162962,1752888661543,-480.0,0.00019287,2]
[373162964,1752888661553,-531.64,0.00019287,2]
[373162966,1752888661562,-480.0,0.00019287,2]
[373162968,1752888661571,-480.0,0.00019287,2]
[373162970,1752888661580,-480.0,0.00019287,2]
[373162972,1752888661589,-480.0,0.00019287,2]
[373162974,1752888661598,-480.0,0.00019287,2]
[373162976,1752888661608,-480.0,0.00019287,2]
[373162978,1752888661617,-480.0,0.00019287,2]
[373162980,1752888661627,-480.0,0.00019287,2]
[373162982,1752888661640,-480.0,0.00019287,2]
[373162984,1752888661649,-480.0,0.00019287,2]
[373162986,1752888661658,-480.0,0.00019287,2]
[373162988,1752888661668,-480.0,0.00019287,2]
[373162990,1752888661677,-480.0,0.00019287,2]
[373162992,1752888661686,-195.6840476,0.00019287,2]
[373162994,1752888661696,-480.0,0.00019287,2]
[373162995,1752888661705,-480.0,0.00019287,2]
[373162997,1752888661714,-293.98810762,0.00019287,2]
[373162999,1752888661723,-480.0,0.00019287,2]
[373163001,1752888661732,-466.16164408,0.00019287,2]
[373163003,1752888661742,-480.0,0.00019287,2]
[373163005,1752888661751,-480.0,0.00019287,2]
[373163007,1752888661761,-480.0,0.00019287,2]
[373163009,1752888661770,-480.0,0.00019287,2]
[373163011,1752888661779,-480.0,0.00019287,2]
[373163013,1752888661789,-413.03233484,0.00019287,2]
[373163015,1752888661798,-480.0,0.00019287,2]
[373163017,1752888661807,-480.0,0.00019287,2]
[373163019,1752888661817,-480.0,0.00019287,2]
[373163021,1752888661826,-480.0,0.00019287,2]
[373163023,1752888661835,-480.0,0.00019287,2]
[373163025,1752888661845,-506.35,0.00019287,2]
[373163026,1752888661854,-480.0,0.00019287,2]
[373163028,1752888661863,-480.0,0.00019287,2]
[373163030,1752888661873,-192.0,0.00019287,2]
[373163032,1752888661882,-424.27335663,0.00019287,2]
[373163034,1752888661894,-480.0,0.00019287,2]
[373163036,1752888661904,-480.0,0.00019287,2]
[373163038,1752888661914,-440.0,0.00019287,2]
[373163040,1752888661923,-500.0,0.00019287,2]
[373163042,1752888661933,-440.0,0.00019287,2]
[373163044,1752888661942,-792.99,0.00019287,2]
[373163046,1752888661951,-480.0,0.00019287,2]
[373163048,1752888661961,-236.52355656,0.00019287,2]
[373163050,1752888661970,-380.0,0.00019287,2]
[373163052,1752888661979,-460.0,0.00019287,2]
[373163054,1752888661988,-480.0,0.00019287,2]
[373163056,1752888661998,-480.0,0.00019287,2]
[373163058,1752888662007,-480.0,0.00019287,2]
[373163059,1752888662016,-480.0,0.00019287,2]
[373163061,1752888662026,-480.0,0.00019287,2]
[373163063,1752888662034,-480.0,0.00019287,2]
[373163065,1752888662044,-480.0,0.00019287,2]
[373163067,1752888662052,-480.0,0.00019287,2]
[373163069,1752888662062,-659.27,0.00019287,2]
[373163071,1752888662071,-480.0,0.00019287,2]
[373163073,1752888662080,-422.46519605,0.00019287,2]
[373163075,1752888662089,-480.0,0.00019287,2]
[373163077,1752888662099,-480.0,0.00019287,2]
[373163079,1752888662108,-420.0,0.00019287,2]
[373163081,1752888662118,-480.0,0.00019287,2]
[373163083,1752888662127,-480.0,0.00019287,2]
[373163085,1752888662140,-500.0,0.00019287,2]
[373163087,1752888662153,-480.0,0.00019287,2]
[373163089,1752888662163,-480.0,0.00019287,2]
[373163091,1752888662172,-480.0,0.00019287,2]
[373163092,1752888662181,-460.0,0.00019287,2]
[373163094,1752888662191,-480.0,0.00019287,2]
[373163096,1752888662200,-480.0,0.00019287,2]
[373163098,1752888662210,-879.89,0.00019287,2]
[373163100,1752888662221,-480.0,0.00019287,2]
[373163102,1752888662237,-480.0,0.00019287,2]
[373163104,1752888662247,-480.0,0.00019287,2]
[373163106,1752888662256,-480.0,0.00019287,2]
[373163108,1752888662265,-480.0,0.00019287,2]
[373163110,1752888662274,-420.0,0.00019287,2]
[373163112,1752888662283,-480.0,0.00019287,2]
[373163114,1752888662292,-480.0,0.00019287,2]
[373163116,1752888662301,-428.90054366,0.00019287,2]
[373163118,1752888662311,-500.0,0.00019287,2]
[373163120,1752888662320,-480.0,0.00019287,2]
[373163122,1752888662329,-480.0,0.00019287,2]
[373163124,1752888662338,-480.0,0.00019287,2]
[373163126,1752888662347,-305.05358008,0.00019287,2]
[373163128,1752888662356,-480.0,0.00019287,2]
[373163129,1752888662366,-480.0,0.00019287,2]
[373163131,1752888662376,-480.0,0.00019287,2]
[373163133,1752888662390,-480.0,0.00019287,2]
[373163135,1752888662399,-480.0,0.00019287,2]
[373163137,1752888662409,-480.0,0.00019287,2]
[373163139,1752888662418,-480.0,0.00019287,2]
[373163141,1752888662428,-849.49,0.00019287,2]
[373163143,1752888662436,-480.0,0.00019287,2]
[373163145,1752888662445,-480.0,0.00019287,2]
[373163147,1752888662455,-480.0,0.00019287,2]
[373163149,1752888662464,-480.0,0.00019287,2]
[373163151,1752888662473,-480.0,0.00019287,2]
[373163153,1752888662482,-480.0,0.00019287,2]